[Event "Schack-SM 2024: Junior-SM"]
[Site "Fortnox Arena, Hejaregatan 5, Vaxjo, Sweden"]
[Date "2024.06.29"]
[Round "1.3"]
[White "Nilsson, Oliver"]
[Black "Strom-Engdahl, Alexander"]
[Result "1-0"]
[TimeControl "90 minutes for 40 moves + 30 minutes for the rest of the game + 30 seconds per move from move one."]
[WhiteElo "2099"]
[BlackElo "2191"]

1. e4 {[%clk 01:30:59]} {[%emt 00:07:13]} e5 {[%clk 01:30:53]} {[%emt
00:00:07]} 2. Nf3 {[%clk 01:31:24]} {[%emt 00:00:05]} Nc6 {[%clk 01:31:20]}
{[%emt 00:00:04]} 3. d4 {[%clk 01:31:49]} {[%emt 00:00:05]} exd4 {[%clk
01:31:46]} {[%emt 00:00:04]} 4. Nxd4 {[%clk 01:32:17]} {[%emt 00:00:02]} Nf6
{[%clk 01:32:04]} {[%emt 00:00:12]} 5. Nxc6 {[%clk 01:32:43]} {[%emt 00:00:04]}
bxc6 {[%clk 01:32:30]} {[%emt 00:00:05]} 6. Bd3 {[%clk 01:33:10]} {[%emt
00:00:03]} d5 {[%clk 01:29:08]} {[%emt 00:03:51]} 7. Nd2 {[%clk 01:30:54]}
{[%emt 00:02:45]} Bc5 {[%clk 01:25:29]} {[%emt 00:04:10]} 8. O-O {[%clk
01:28:44]} {[%emt 00:02:40]} Bg4 {[%clk 01:22:09]} {[%emt 00:03:49]} 9. Qe1
{[%clk 01:27:43]} {[%emt 00:01:32]} O-O {[%clk 01:21:20]} {[%emt 00:01:19]} 10.
e5 {[%clk 01:15:29]} {[%emt 00:12:44]} Nd7 {[%clk 01:20:28]} {[%emt 00:01:22]}
11. Nb3 {[%clk 01:15:18]} {[%emt 00:00:40]} Bb6 {[%clk 01:18:38]} {[%emt
00:02:22]} 12. Bf4 {[%clk 01:09:22]} {[%emt 00:06:24]} f6 {[%clk 01:14:30]}
{[%emt 00:04:39]} 13. e6 {[%clk 01:00:25]} {[%emt 00:09:26]} Re8 {[%clk
01:14:32]} {[%emt 00:00:29]} 14. Qc3 {[%clk 01:00:26]} {[%emt 00:00:29]} Rxe6
{[%clk 01:08:09]} {[%emt 00:06:54]} 15. h3 {[%clk 00:58:03]} {[%emt 00:02:52]}
Bh5 {[%clk 01:02:13]} {[%emt 00:06:25]} 16. Bf5 {[%clk 00:57:41]} {[%emt
00:00:50]} Re7 {[%clk 00:59:28]} {[%emt 00:03:16]} 17. Qxc6 {[%emt 00:08:32]}
Ne5 {[%clk 00:56:59]} {[%emt 00:02:56]} 18. Be6+ {[%clk 00:43:02]} {[%emt
00:07:11]} Bf7 {[%clk 00:55:57]} {[%emt 00:01:33]} 19. Bxf7+ {[%clk 00:43:25]}
{[%emt 00:00:08]} Kxf7 {[%clk 00:54:57]} {[%emt 00:01:29]} 20. Bxe5 {[%clk
00:42:41]} {[%emt 00:01:14]} Rxe5 {[%clk 00:54:50]} {[%emt 00:00:37]} 21. c4
{[%clk 00:32:13]} {[%emt 00:10:58]} Re6 {[%clk 00:50:20]} {[%emt 00:05:00]} 22.
Qa4 {[%clk 00:32:01]} {[%emt 00:00:42]} Re4 {[%clk 00:49:42]} {[%emt 00:01:08]}
23. Rac1 {[%clk 00:31:05]} {[%emt 00:01:26]} Qd6 {[%clk 00:42:21]} {[%emt
00:07:50]} 24. Qb5 {[%clk 00:18:32]} {[%emt 00:13:03]} c6 {[%clk 00:39:33]}
{[%emt 00:03:19]} 25. Qa6 {[%clk 00:18:05]} {[%emt 00:00:54]} Bc7 {[%clk
00:38:05]} {[%emt 00:02:01]} 26. g3 {[%clk 00:18:09]} {[%emt 00:00:26]} Rae8
{[%clk 00:30:41]} {[%emt 00:07:54]} 27. cxd5 {[%clk 00:14:26]} {[%emt
00:04:13]} Bb6 {[%clk 00:27:31]} {[%emt 00:03:40]} 28. Kh2 {[%clk 00:13:33]}
{[%emt 00:01:22]} cxd5 {[%clk 00:25:54]} {[%emt 00:02:08]} 29. Rc2 {[%clk
00:10:50]} {[%emt 00:03:13]} h5 {[%clk 00:22:20]} {[%emt 00:04:04]} 30. Rd1
{[%clk 00:07:41]} {[%emt 00:03:39]} d4 {[%clk 00:16:36]} {[%emt 00:06:14]} 31.
Qc4+ {[%clk 00:06:03]} {[%emt 00:02:08]} Kg6 {[%clk 00:12:30]} {[%emt
00:04:35]} 32. Nd2 {[%clk 00:05:18]} {[%emt 00:01:16]} Re1 {[%clk 00:08:49]}
{[%emt 00:04:12]} 33. Qd3+ {[%clk 00:05:31]} {[%emt 00:00:16]} Kf7 {[%clk
00:07:06]} {[%emt 00:02:12]} 34. Rxe1 {[%clk 00:05:53]} {[%emt 00:00:09]} Rxe1
{[%clk 00:07:07]} {[%emt 00:00:29]} 35. Nf3 {[%clk 00:06:19]} {[%emt 00:00:03]}
Ra1 {[%clk 00:02:17]} {[%emt 00:05:20]} 36. Re2 {[%clk 00:02:55]} {[%emt
00:03:54]} Qd5 {[%clk 00:02:06]} {[%emt 00:00:42]} 37. a3 {[%clk 00:02:16]}
{[%emt 00:01:10]} h4 {[%clk 00:02:19]} {[%emt 00:00:16]} 38. gxh4 {[%clk
00:01:04]} {[%emt 00:01:41]} Qd6+ {[%clk 00:02:35]} {[%emt 00:00:13]} 39. Kg2
{[%clk 00:01:30]} {[%emt 00:00:05]} Rc1 {[%clk 00:01:58]} {[%emt 00:01:07]} 40.
h5 {[%clk 00:01:29]} {[%emt 00:00:32]} Rc8 {[%clk 00:01:23]} {[%emt 00:01:04]}
41. Qg6+ {[%clk 00:27:31]} {[%emt 00:04:28]} Kg8 {[%clk 00:31:16]} {[%emt
00:00:36]} 42. h6 {[%clk 00:21:37]} {[%emt 00:06:24]} Qd7 {[%clk 00:30:51]}
{[%emt 00:00:55]} 43. Re6 {[%clk 00:15:11]} {[%emt 00:06:55]} Rf8 {[%clk
00:20:45]} {[%emt 00:10:39]} 44. Rd6 {[%clk 00:15:20]} {[%emt 00:00:20]} Qf7
{[%clk 00:20:19]} {[%emt 00:00:58]} 45. Qxg7+ {[%clk 00:14:34]} {[%emt
00:01:15]} Qxg7+ {[%clk 00:20:40]} {[%emt 00:00:09]} 46. hxg7 {[%clk 00:15:02]}
{[%emt 00:00:02]} Kxg7 {[%clk 00:20:47]} {[%emt 00:00:23]} 47. Nxd4 {[%clk
00:15:30]} {[%emt 00:00:03]} Rc8 {[%clk 00:20:16]} {[%emt 00:00:59]} 48. Nf5+
{[%clk 00:13:29]} {[%emt 00:02:33]} Kh7 {[%clk 00:20:16]} {[%emt 00:00:28]} 49.
Rd7+ {[%clk 00:13:46]} {[%emt 00:00:14]} Kh8 {[%clk 00:20:30]} {[%emt
00:00:16]} 50. Rd2 {[%clk 00:12:54]} {[%emt 00:01:23]} a5 {[%clk 00:19:28]}
{[%emt 00:01:31]} 51. Nd6 {[%clk 00:11:21]} {[%emt 00:02:01]} Rc1 {[%clk
00:18:51]} {[%emt 00:01:09]} 52. Ne4 {[%clk 00:11:03]} {[%emt 00:00:47]} Kg7
{[%emt 00:01:21]} 53. Nxf6 {[%clk 00:11:00]} {[%emt 00:00:12]} a4 {[%clk
00:17:43]} {[%emt 00:01:10]} 54. Nd5 {[%clk 00:11:14]} {[%emt 00:00:14]} Ba5
{[%clk 00:17:43]} {[%emt 00:00:32]} 55. Re2 {[%clk 00:11:27]} {[%emt 00:00:16]}
Rc5 {[%clk 00:16:49]} {[%emt 00:01:24]} 56. Ne3 {[%clk 00:11:45]} {[%emt
00:00:11]} Bc7 {[%clk 00:16:27]} {[%emt 00:00:53]} 57. Rc2 {[%clk 00:12:01]}
{[%emt 00:00:14]} Rxc2 {[%clk 00:16:43]} {[%emt 00:00:15]} 58. Nxc2 {[%clk
00:12:27]} {[%emt 00:00:03]} Be5 {[%clk 00:17:12]} {[%emt 00:00:02]} 59. Ne3
{[%clk 00:08:00]} {[%emt 00:04:56]} Bxb2 {[%clk 00:17:30]} {[%emt 00:00:13]} 60.
Nc4 {[%clk 00:08:19]} {[%emt 00:00:13]} Bc1 {[%clk 00:17:51]} {[%emt 00:00:07]}
61. Kf3 {[%clk 00:08:35]} {[%emt 00:00:15]} Kg6 {[%clk 00:17:22]} {[%emt
00:00:58]} 62. Kg4 {[%clk 00:08:14]} {[%emt 00:00:50]} Kf6 {[%clk 00:17:35]}
{[%emt 00:00:16]} 63. f4 {[%clk 00:08:29]} {[%emt 00:00:15]} Kg6 {[%clk
00:17:53]} {[%emt 00:00:11]} 64. h4 {[%clk 00:08:52]} {[%emt 00:00:09]} Kf6
{[%clk 00:18:09]} {[%emt 00:00:15]} 65. h5 {[%clk 00:09:16]} {[%emt 00:00:06]}
Kf7 {[%clk 00:18:14]} {[%emt 00:00:25]} 66. Kf5 {[%clk 00:09:29]} {[%emt
00:00:14]} Kg7 {[%clk 00:18:27]} {[%emt 00:00:18]} 67. Kg5 {[%clk 00:09:56]}
{[%emt 00:00:04]} Kh7 {[%clk 00:17:50]} {[%emt 00:01:08]} 68. h6 {[%clk
00:10:10]} {[%emt 00:00:16]} Kh8 {[%clk 00:15:36]} {[%emt 00:02:43]} 69. Kf5
{[%clk 00:06:28]} {[%emt 00:04:13]} Kh7 {[%clk 00:15:44]} {[%emt 00:00:22]} 70.
Kg5 {[%clk 00:05:43]} {[%emt 00:01:15]} Kh8 {[%clk 00:16:05]} {[%emt 00:00:09]}
71. Kg6 {[%clk 00:06:12]} {[%emt 00:00:01]} Bxf4 {[%clk 00:16:26]} {[%emt
00:00:09]} 72. Nb6 {[%clk 00:06:06]} {[%emt 00:00:35]} Bd6 {[%clk 00:16:09]}
{[%emt 00:00:46]} 73. Nc4 {[%clk 00:05:25]} {[%emt 00:01:13]} Bf4 {[%clk
00:16:27]} {[%emt 00:00:11]} 74. h7 {[%clk 00:05:47]} {[%emt 00:00:08]} Bd6
{[%clk 00:16:52]} {[%emt 00:00:06]} 75. Nb6 {[%clk 00:05:31]} {[%emt 00:00:46]}
Bxa3 {[%clk 00:16:01]} {[%emt 00:01:20]} 76. Nc4 {[%clk 00:05:21]} {[%emt
00:00:37]} Bb2 {[%clk 00:15:44]} {[%emt 00:00:51]} 77. Nd6 {[%clk 00:05:46]}
{[%emt 00:00:03]} 1-0

[Event "Schack-SM 2024: Junior-SM"]
[Site "Fortnox Arena, Hejaregatan 5, Vaxjo, Sweden"]
[Date "2024.06.29"]
[Round "1.4"]
[White "Seo, Jung Hyun"]
[Black "Grahn, Vidar"]
[Result "1-0"]
[TimeControl "90 minutes for 40 moves + 30 minutes for the rest of the game + 30 seconds per move from move one."]
[BlackTitle "FM"]
[WhiteElo "2137"]
[BlackElo "2264"]

1. e4 {[%clk 01:30:56]} {[%emt 00:00:04]} c5 {[%clk 01:30:12]} {[%emt
00:00:48]} 2. Nc3 {[%clk 01:31:21]} {[%emt 00:00:06]} Nc6 {[%clk 01:30:34]}
{[%emt 00:00:08]} 3. f4 {[%clk 01:30:54]} {[%emt 00:00:56]} g6 {[%clk
01:30:35]} {[%emt 00:00:29]} 4. Nf3 {[%clk 01:31:15]} {[%emt 00:00:09]} Bg7
{[%clk 01:30:14]} {[%emt 00:00:51]} 5. a3 {[%clk 01:30:24]} {[%emt 00:01:22]}
e6 {[%clk 01:19:36]} {[%emt 00:11:06]} 6. b4 {[%clk 01:29:19]} {[%emt
00:01:36]} b6 {[%clk 01:17:13]} {[%emt 00:02:54]} 7. e5 {[%clk 01:28:28]}
{[%emt 00:01:20]} d6 {[%clk 01:13:47]} {[%emt 00:03:57]} 8. Bb5 {[%clk
01:27:40]} {[%emt 00:01:17]} Nge7 {[%clk 01:11:16]} {[%emt 00:03:01]} 9. Ne4
{[%clk 01:27:11]} {[%emt 00:00:59]} dxe5 {[%clk 01:10:06]} {[%emt 00:01:41]} 10.
fxe5 {[%clk 01:27:11]} {[%emt 00:00:29]} O-O {[%clk 01:09:00]} {[%emt
00:01:36]} 11. Nf6+ {[%clk 01:27:04]} {[%emt 00:00:37]} Kh8 {[%clk 01:09:16]}
{[%emt 00:00:14]} 12. Bb2 {[%clk 01:26:55]} {[%emt 00:00:40]} a6 {[%clk
00:58:41]} {[%emt 00:11:04]} 13. Bd3 {[%clk 01:23:22]} {[%emt 00:04:03]} Nd5
{[%clk 00:52:19]} {[%emt 00:06:52]} 14. Be4 {[%clk 01:14:16]} {[%emt 00:09:36]}
Bb7 {[%clk 00:39:56]} {[%emt 00:12:53]} 15. bxc5 {[%clk 01:08:27]} {[%emt
00:06:19]} bxc5 {[%clk 00:39:26]} {[%emt 00:01:00]} 16. O-O {[%clk 01:07:26]}
{[%emt 00:01:31]} Nxf6 {[%clk 00:35:16]} {[%emt 00:04:40]} 17. exf6 {[%clk
01:07:37]} {[%emt 00:00:20]} Bxf6 {[%clk 00:35:36]} {[%emt 00:00:09]} 18. Bxf6+
{[%clk 01:07:34]} {[%emt 00:00:34]} Qxf6 {[%clk 00:35:55]} {[%emt 00:00:11]} 19.
Rb1 {[%clk 01:07:47]} {[%emt 00:00:16]} Qe7 {[%clk 00:29:26]} {[%emt 00:06:59]}
20. Rxb7 {[%clk 01:04:31]} {[%emt 00:03:47]} Qxb7 {[%clk 00:29:50]} {[%emt
00:00:05]} 21. Ne5 {[%clk 01:04:53]} {[%emt 00:00:08]} Qc7 {[%clk 00:26:08]}
{[%emt 00:04:12]} 22. Nxc6 {[%clk 01:02:53]} {[%emt 00:02:30]} f6 {[%clk
00:20:11]} {[%emt 00:06:27]} 23. d4 {[%clk 01:01:11]} {[%emt 00:02:13]} cxd4
{[%clk 00:19:07]} {[%emt 00:01:34]} 24. Qxd4 {[%clk 01:00:23]} {[%emt
00:01:17]} e5 {[%clk 00:18:50]} {[%emt 00:00:47]} 25. Qb2 {[%clk 00:49:55]}
{[%emt 00:10:58]} a5 {[%clk 00:17:13]} {[%emt 00:02:07]} 26. Rb1 {[%clk
00:43:01]} {[%emt 00:07:24]} Qd6 {[%clk 00:13:34]} {[%emt 00:04:09]} 27. Qc3
{[%clk 00:40:05]} {[%emt 00:03:26]} Rac8 {[%clk 00:12:39]} {[%emt 00:01:24]} 28.
Bf3 {[%clk 00:33:19]} {[%emt 00:07:17]} Rfe8 {[%clk 00:11:30]} {[%emt
00:01:39]} 29. Rd1 {[%clk 00:32:24]} {[%emt 00:01:26]} Qe6 {[%clk 00:09:28]}
{[%emt 00:02:30]} 30. Qc5 {[%clk 00:27:23]} {[%emt 00:05:31]} e4 {[%clk
00:05:27]} {[%emt 00:04:32]} 31. Rd6 {[%clk 00:27:44]} {[%emt 00:00:09]} Qa2
{[%clk 00:04:55]} {[%emt 00:01:02]} 32. Be2 {[%clk 00:23:47]} {[%emt 00:04:28]}
Re6 {[%clk 00:03:33]} {[%emt 00:01:51]} 33. Rd8+ {[%clk 00:17:18]} {[%emt
00:06:59]} Rxd8 {[%clk 00:02:54]} {[%emt 00:01:09]} 34. Nxd8 {[%clk 00:17:43]}
{[%emt 00:00:05]} Qa1+ {[%clk 00:02:06]} {[%emt 00:01:18]} 35. Bf1 {[%clk
00:16:51]} {[%emt 00:01:22]} Re8 {[%clk 00:02:24]} {[%emt 00:00:12]} 36. Nf7+
{[%clk 00:14:52]} {[%emt 00:02:29]} Kg7 {[%clk 00:01:46]} {[%emt 00:01:08]} 37.
Nd6 {[%clk 00:14:49]} {[%emt 00:00:33]} Qe5 {[%clk 00:00:56]} {[%emt 00:01:19]}
38. Nxe8+ {[%clk 00:14:46]} {[%emt 00:00:34]} Qxe8 {[%clk 00:01:25]} 39. Qe3
{[%clk 00:11:59]} {[%emt 00:03:17]} Qe5 {[%clk 00:01:32]} {[%emt 00:00:23]} 40.
c3 {[%clk 00:11:38]} {[%emt 00:00:51]} g5 {[%clk 00:01:34]} {[%emt 00:00:29]}
41. g3 {[%clk 00:11:44]} {[%emt 00:00:23]} Kg6 {[%clk 00:01:19]} {[%emt
00:00:44]} 42. Bg2 {[%clk 00:11:46]} {[%emt 00:00:29]} f5 {[%clk 00:01:48]}
{[%emt 00:00:01]} 43. g4 {[%clk 00:11:48]} {[%emt 00:00:28]} h5 {[%clk
00:02:04]} {[%emt 00:00:14]} 44. gxf5+ {[%clk 00:09:29]} {[%emt 00:02:49]} Kxf5
{[%clk 00:02:25]} {[%emt 00:00:10]} 45. Qf2+ {[%clk 00:09:43]} {[%emt
00:00:15]} Kg6 {[%clk 00:02:33]} {[%emt 00:00:22]} 46. Qe3 {[%clk 00:09:44]}
{[%emt 00:00:29]} Kf5 {[%clk 00:03:01]} {[%emt 00:00:02]} 47. a4 {[%clk
00:09:23]} {[%emt 00:00:51]} Qd5 {[%clk 00:03:06]} {[%emt 00:00:24]} 48. Qd4
{[%clk 00:09:15]} {[%emt 00:00:39]} Qb7 {[%clk 00:03:31]} {[%emt 00:00:05]} 49.
Qc5+ {[%clk 00:09:22]} {[%emt 00:00:23]} Kf4 {[%clk 00:02:50]} {[%emt
00:01:11]} 50. Qd6+ {[%clk 00:09:29]} {[%emt 00:00:23]} Kf5 {[%clk 00:02:52]}
{[%emt 00:00:27]} 51. Qc5+ {[%clk 00:08:50]} {[%emt 00:01:10]} Kf4 {[%clk
00:02:51]} {[%emt 00:00:31]} 52. Qf2+ {[%clk 00:08:34]} {[%emt 00:00:46]} Ke5
{[%clk 00:03:08]} {[%emt 00:00:13]} 53. Qg3+ {[%clk 00:06:35]} {[%emt
00:02:29]} Kf5 {[%clk 00:03:05]} {[%emt 00:00:33]} 54. Qh3+ {[%clk 00:05:35]}
{[%emt 00:01:30]} Kf4 {[%clk 00:03:23]} {[%emt 00:00:11]} 55. Qg3+ {[%clk
00:04:59]} {[%emt 00:01:07]} Kf5 {[%clk 00:03:47]} {[%emt 00:00:06]} 56. Qf2+
{[%clk 00:04:31]} {[%emt 00:00:58]} Ke5 {[%clk 00:03:31]} {[%emt 00:00:45]} 57.
h4 {[%clk 00:04:40]} {[%emt 00:00:22]} gxh4 {[%clk 00:02:21]} {[%emt 00:01:40]}
58. Qd4+ {[%clk 00:04:28]} {[%emt 00:00:42]} Kf4 {[%clk 00:02:00]} {[%emt
00:00:51]} 59. Qf2+ {[%clk 00:03:34]} {[%emt 00:01:23]} Ke5 {[%clk 00:27:53]}
{[%emt 00:04:37]} 60. Qxh4 {[%clk 00:31:07]} {[%emt 00:02:58]} Qb6+ {[%clk
00:25:32]} {[%emt 00:02:50]} 61. Kh2 {[%clk 00:31:03]} {[%emt 00:00:34]} Qb1
{[%clk 00:18:34]} {[%emt 00:07:29]} 62. Qxh5+ {[%clk 00:31:13]} {[%emt
00:00:20]} Kf4 {[%clk 00:18:36]} {[%emt 00:00:28]} 63. Qh6+ {[%clk 00:31:32]}
{[%emt 00:00:11]} Kg4 {[%clk 00:18:49]} {[%emt 00:00:16]} 64. Qg6+ {[%clk
00:31:21]} {[%emt 00:00:42]} Kf4 {[%clk 00:19:04]} {[%emt 00:00:15]} 65. Qg3+
{[%clk 00:31:43]} {[%emt 00:00:08]} Kf5 {[%clk 00:19:26]} {[%emt 00:00:08]} 66.
Bh3+ {[%clk 00:32:03]} {[%emt 00:00:10]} Kf6 {[%clk 00:19:49]} {[%emt
00:00:07]} 67. Qd6+ {[%clk 00:32:22]} {[%emt 00:00:11]} Kg5 {[%clk 00:19:03]}
{[%emt 00:01:16]} 68. Qe5+ {[%clk 00:32:43]} {[%emt 00:00:10]} Kh6 {[%clk
00:18:59]} {[%emt 00:00:33]} 69. Bg2 {[%clk 00:30:17]} {[%emt 00:02:55]} Qc1
{[%clk 00:19:09]} {[%emt 00:00:20]} 70. Qxe4 {[%clk 00:30:37]} {[%emt
00:00:10]} Kg5 {[%clk 00:19:06]} {[%emt 00:00:34]} 71. Qe5+ {[%clk 00:30:57]}
{[%emt 00:00:10]} Kg4 {[%clk 00:18:35]} {[%emt 00:01:00]} 72. Qd4+ {[%clk
00:30:13]} {[%emt 00:01:14]} Kf5 {[%clk 00:17:55]} {[%emt 00:01:09]} 73. c4
{[%clk 00:30:25]} {[%emt 00:00:20]} Qc2 {[%clk 00:18:00]} {[%emt 00:00:25]} 74.
c5 {[%clk 00:30:26]} {[%emt 00:00:29]} Kg5 {[%clk 00:18:13]} {[%emt 00:00:18]}
75. c6 {[%clk 00:30:48]} {[%emt 00:00:08]} Qh7+ {[%clk 00:18:33]} {[%emt
00:00:09]} 76. Kg3 {[%clk 00:29:26]} {[%emt 00:01:52]} Qc7+ {[%clk 00:18:49]}
{[%emt 00:00:14]} 77. Kf2 {[%clk 00:29:52]} {[%emt 00:00:05]} Qf7+ {[%clk
00:19:08]} {[%emt 00:00:10]} 78. Kg1 {[%clk 00:30:15]} {[%emt 00:00:06]} Qe7
{[%clk 00:19:06]} {[%emt 00:00:33]} 79. Qd5+ {[%clk 00:30:33]} {[%emt
00:00:12]} Kh6 {[%clk 00:18:53]} {[%emt 00:00:35]} 80. Qd2+ {[%clk 00:29:53]}
{[%emt 00:01:18]} Kg6 {[%clk 00:18:03]} {[%emt 00:01:20]} 81. Be4+ {[%clk
00:29:06]} {[%emt 00:01:17]} Kh5 {[%clk 00:18:14]} {[%emt 00:00:18]} 82. Qxa5+
{[%clk 00:28:43]} {[%emt 00:00:54]} Kh6 {[%clk 00:18:15]} {[%emt 00:00:26]} 83.
Qd2+ {[%clk 00:28:57]} {[%emt 00:00:19]} Kh5 {[%clk 00:18:29]} {[%emt
00:00:15]} 84. Bf3+ {[%clk 00:28:55]} {[%emt 00:00:32]} Kg6 {[%clk 00:18:40]}
{[%emt 00:00:19]} 85. Qf2 {[%clk 00:28:42]} {[%emt 00:00:44]} Qb4 {[%clk
00:18:32]} {[%emt 00:00:38]} 86. c7 {[%clk 00:28:14]} {[%emt 00:00:58]} 1-0

[Event "Schack-SM 2024: Junior-SM"]
[Site "Fortnox Arena, Hejaregatan 5, Vaxjo, Sweden"]
[Date "2024.06.29"]
[Round "1.5"]
[White "Valcu, Lavinia"]
[Black "Rasti, Arvin"]
[Result "1-0"]
[TimeControl "90 minutes for 40 moves + 30 minutes for the rest of the game + 30 seconds per move from move one."]
[BlackTitle "FM"]
[WhiteElo "1971"]
[BlackElo "2210"]

1. d4 {[%clk 01:30:56]} {[%emt 00:00:03]} Nf6 {[%clk 01:23:29]} {[%emt
00:07:32]} 2. Bg5 {[%clk 01:31:15]} {[%emt 00:00:10]} e6 {[%clk 01:23:20]}
{[%emt 00:00:39]} 3. e4 {[%clk 01:31:36]} {[%emt 00:00:09]} h6 {[%clk
01:23:48]} {[%emt 00:00:03]} 4. Bxf6 {[%clk 01:31:58]} {[%emt 00:00:08]} Qxf6
{[%clk 01:24:15]} {[%emt 00:00:01]} 5. Nc3 {[%clk 01:32:16]} {[%emt 00:00:13]}
d6 {[%clk 01:23:32]} {[%emt 00:01:13]} 6. Qd2 {[%clk 01:32:33]} {[%emt
00:00:14]} g6 {[%clk 01:21:58]} {[%emt 00:02:03]} 7. O-O-O {[%clk 01:32:42]}
{[%emt 00:00:20]} Bg7 {[%clk 01:20:57]} {[%emt 00:01:32]} 8. f4 {[%clk
01:32:36]} {[%emt 00:00:36]} O-O {[%clk 01:21:06]} {[%emt 00:00:21]} 9. Nf3
{[%clk 01:32:24]} {[%emt 00:00:42]} a6 {[%clk 01:18:28]} {[%emt 00:03:09]} 10.
Bd3 {[%clk 01:26:35]} {[%emt 00:06:19]} b5 {[%clk 01:16:38]} {[%emt 00:02:19]}
11. e5 {[%clk 01:13:28]} {[%emt 00:13:37]} Qe7 {[%clk 01:17:03]} {[%emt
00:00:05]} 12. Ne4 {[%clk 01:08:45]} {[%emt 00:05:15]} Nd7 {[%clk 01:11:45]}
{[%emt 00:05:47]} 13. h4 {[%clk 00:55:57]} {[%emt 00:13:18]} h5 {[%clk
01:03:02]} {[%emt 00:09:11]} 14. g4 {[%clk 00:48:51]} {[%emt 00:07:37]} hxg4
{[%clk 00:59:38]} {[%emt 00:03:54]} 15. h5 {[%clk 00:34:43]} {[%emt 00:14:38]}
gxf3 {[%clk 00:52:41]} {[%emt 00:07:27]} 16. Rdg1 {[%clk 00:27:08]} {[%emt
00:08:05]} Bb7 {[%clk 00:44:09]} {[%emt 00:09:02]} 17. hxg6 {[%clk 00:21:39]}
{[%emt 00:05:59]} f5 {[%clk 00:38:50]} {[%emt 00:05:49]} 18. Qh2 {[%clk
00:15:35]} {[%emt 00:06:33]} Rfe8 {[%clk 00:38:49]} {[%emt 00:00:31]} 19. Rg3
{[%clk 00:13:13]} {[%emt 00:02:52]} Nxe5 {[%clk 00:01:25]} {[%emt 00:37:55]} 20.
dxe5 {[%clk 00:12:23]} {[%emt 00:01:21]} Kf8 {[%clk 00:01:16]} {[%emt
00:00:38]} 21. Rh3 {[%clk 00:11:04]} {[%emt 00:01:49]} Qd8 {[%clk 00:01:29]}
{[%emt 00:00:18]} 22. Rh7 {[%clk 00:07:25]} {[%emt 00:04:08]} Qd7 {[%clk
00:00:43]} {[%emt 00:01:17]} 23. Rh8+ {[%clk 00:07:31]} {[%emt 00:00:23]} 1-0